lending/lending_fUSD_20250808
["ID","MTS","AMOUNT","RATE_DAILY","PERIOD"]
[377923914,1754613219536,-530.45521703,0.00024657,2]
[377923915,1754613219546,-792.51,0.00024657,2]
[377923916,1754613219555,-720.13,0.00024657,2]
[377923917,1754613219565,-526.14,0.00024657,2]
[377923918,1754613219574,-690.34,0.00024657,2]
[377923919,1754613219584,-767.24,0.00024657,2]
[377923920,1754613219593,-784.03,0.00024657,2]
[377923921,1754613219602,-592.46,0.00024657,2]
[377923922,1754613219612,-838.34,0.00024657,2]
[377923923,1754613219622,-619.45,0.00024657,2]
[377923924,1754613219631,-234.43542409,0.00024657,2]
[377923925,1754613219641,-400.0,0.00024657,2]
[377923926,1754613219652,-430.58,0.00024657,2]
[377923927,1754613219662,-387.68,0.00024657,2]
[377923928,1754613219672,-186.17045955,0.00024657,2]
[377923929,1754613219682,-887.56,0.00024657,2]
[377923930,1754613219693,-1398.35,0.00024657,2]
[377923931,1754613219703,-1137.31,0.00024657,2]
[377923932,1754613219713,-488.07,0.00024657,2]
[377923933,1754613219722,-433.15,0.00024657,2]
[377923934,1754613219732,-1086.27,0.00024657,2]
[377923935,1754613219742,-711.54,0.00024657,2]
[377923936,1754613219752,-969.77,0.00024657,2]
[377923937,1754613219762,-644.96,0.00024657,2]
[377923938,1754613219772,-615.2,0.00024657,2]
[377923939,1754613219782,-580.71,0.00024657,2]
[377923940,1754613219792,-1326.15,0.00024657,2]
[377923941,1754613219802,-745.61,0.00024657,2]
[377923942,1754613219813,-777.93,0.00024657,2]
[377923943,1754613219823,-533.67,0.00024657,2]
[377923944,1754613219833,-1146.04,0.00024657,2]
[377923945,1754613219842,-678.35,0.00024657,2]
[377923946,1754613219852,-400.0,0.00024657,2]
[377923947,1754613219863,-1764.53,0.00024657,2]
[377923948,1754613219873,-420.153935,0.00024657,2]
[377923949,1754613219887,-263.57706873,0.00024657,2]
[377923950,1754613219897,-595.92,0.00024657,2]
[377923951,1754613219907,-1128.98,0.00024657,2]
[377923952,1754613219918,-1058.02,0.00024657,2]
[377923953,1754613219928,-467.91,0.00024657,2]
[377923954,1754613219938,-460.25,0.00024657,2]
[377923955,1754613219947,-684.85,0.00024657,2]
[377923956,1754613219959,-1822.08,0.00024657,2]
[377923957,1754613219969,-519.11,0.00024657,2]
[377923958,1754613219979,-834.5,0.00024657,2]
[377923959,1754613219990,-498.62,0.00024657,2]
[377923960,1754613220001,-431.49,0.00024657,2]
[377923961,1754613220011,-756.51,0.00024657,2]
[377923962,1754613220021,-753.02,0.00024657,2]
[377923963,1754613220031,-400.0,0.00024657,2]
[377923964,1754613220041,-474.3,0.00024657,2]
[377923965,1754613220051,-1312.14,0.00024657,2]
[377923966,1754613220061,-530.37,0.00024657,2]
[377923967,1754613220072,-488.75,0.00024657,2]
[377923968,1754613220084,-664.1,0.00024657,2]
[377923969,1754613220094,-753.14,0.00024657,2]
[377923970,1754613220104,-723.03,0.00024657,2]
[377923971,1754613220114,-481.93,0.00024657,2]
[377923972,1754613220124,-681.29,0.00024657,2]
[377923973,1754613220134,-1362.2,0.00024657,2]
[377923974,1754613220145,-1202.92,0.00024657,2]
[377923975,1754613220156,-908.09,0.00024657,2]
[377923976,1754613220166,-400.0,0.00024657,2]
[377923977,1754613220176,-1356.82,0.00024657,2]
[377923978,1754613220187,-642.93,0.00024657,2]
[377923979,1754613220198,-558.14,0.00024657,2]
[377923980,1754613220208,-857.38,0.00024657,2]
[377923981,1754613220218,-600.87,0.00024657,2]
[377923982,1754613220228,-1113.28,0.00024657,2]
[377923983,1754613220238,-766.74,0.00024657,2]
[377923984,1754613220248,-1063.89,0.00024657,2]
[377923985,1754613220259,-473.3,0.00024657,2]
[377923986,1754613220270,-702.23,0.00024657,2]
[377923987,1754613220280,-697.81,0.00024657,2]
[377923988,1754613220290,-835.59,0.00024657,2]
[377923989,1754613220300,-593.88,0.00024657,2]
[377923990,1754613220310,-787.56,0.00024657,2]
[377923991,1754613220319,-1070.57,0.00024657,2]
[377923992,1754613220330,-714.37,0.00024657,2]
[377923993,1754613220339,-565.06,0.00024657,2]
[377923994,1754613220350,-805.74,0.00024657,2]
[377923995,1754613220360,-1013.85,0.00024657,2]
[377923996,1754613220370,-446.94,0.00024657,2]
[377923997,1754613220380,-518.84,0.00024657,2]
[377923998,1754613220390,-634.1,0.00024657,2]
[377923999,1754613220399,-668.96,0.00024657,2]
[377924000,1754613220409,-997.03,0.00024657,2]
[377924001,1754613220418,-1310.15,0.00024657,2]
[377924002,1754613220428,-539.85,0.00024657,2]
[377924003,1754613220437,-823.13,0.00024657,2]
[377924004,1754613220447,-602.12,0.00024657,2]
[377924005,1754613220457,-542.82,0.00024657,2]
[377924006,1754613220468,-1520.38,0.00024657,2]
[377924007,1754613220478,-1166.4,0.00024657,2]
[377924008,1754613220489,-258.01411236,0.00024657,2]
[377924009,1754613220501,-677.81,0.00024657,2]
[377924010,1754613220512,-400.0,0.00024657,2]
[377924011,1754613220524,-1322.15,0.00024657,2]
[377924012,1754613220536,-400.0,0.00024657,2]
[377924013,1754613220546,-400.0,0.00024657,2]
[377924014,1754613220556,-439.53,0.00024657,2]
[377924015,1754613220566,-729.31,0.00024657,2]
[377924016,1754613220577,-455.12,0.00024657,2]
[377924017,1754613220587,-1225.17,0.00024657,2]
[377924018,1754613220597,-440.74,0.00024657,2]
[377924019,1754613220608,-400.0,0.00024657,2]
[377924020,1754613220619,-1460.14,0.00024657,2]
[377924021,1754613220631,-400.0,0.00024657,2]
[377924022,1754613220643,-535.87,0.00024657,2]
[377924023,1754613220654,-400.0,0.00024657,2]
[377924024,1754613220665,-965.56,0.00024657,2]
[377924025,1754613220675,-400.0,0.00024657,2]
[377924026,1754613220685,-473.14,0.00024657,2]
[377924027,1754613220695,-1112.82,0.00024657,2]
[377924028,1754613220706,-1239.98,0.00024657,2]
[377924029,1754613220717,-546.56,0.00024657,2]
[377924030,1754613220727,-412.93,0.00024657,2]
[377924031,1754613220737,-592.4,0.00024657,2]
[377924032,1754613220747,-1332.23,0.00024657,2]
[377924033,1754613220758,-1121.49,0.00024657,2]
[377924034,1754613220768,-1921.83,0.00024657,2]
[377924035,1754613220778,-477.33,0.00024657,2]
[377924036,1754613220788,-2373.45,0.00024657,2]
[377924037,1754613220799,-867.66,0.00024657,2]
[377924038,1754613220809,-434.62,0.00024657,2]
[377924039,1754613220819,-586.09,0.00024657,2]
[377924040,1754613220830,-633.66,0.00024657,2]
[377924041,1754613220839,-1031.22,0.00024657,2]
[377924042,1754613220850,-591.29,0.00024657,2]
[377924043,1754613220860,-1239.8,0.00024657,2]
[377924044,1754613220871,-433.91,0.00024657,2]
[377924045,1754613220882,-765.3,0.00024657,2]
[377924046,1754613220893,-1091.91,0.00024657,2]
[377924047,1754613220905,-718.67,0.00024657,2]
[377924048,1754613220915,-225.8504353,0.00024657,2]
[377924049,1754613220926,-942.73,0.00024657,2]
[377924050,1754613220937,-655.59,0.00024657,2]
[377924051,1754613220951,-549.44,0.00024657,2]
[377924052,1754613220962,-706.48,0.00024657,2]
[377924053,1754613220972,-798.23,0.00024657,2]
[377924054,1754613220982,-1153.34,0.00024657,2]
[377924055,1754613220993,-1177.75,0.00024657,2]
[377924056,1754613221004,-819.45,0.00024657,2]
[377924057,1754613221014,-560.12,0.00024657,2]
[377924058,1754613221025,-472.38,0.00024657,2]
[377924059,1754613221036,-549.94,0.00024657,2]
[377924060,1754613221046,-895.98,0.00024657,2]
[377924061,1754613221058,-804.91,0.00024657,2]
[377924062,1754613221069,-638.56,0.00024657,2]
[377924063,1754613221079,-1258.89,0.00024657,2]
[377924064,1754613221090,-593.81,0.00024657,2]
[377924065,1754613221100,-622.14,0.00024657,2]
[377924066,1754613221110,-1105.48,0.00024657,2]
[377924067,1754613221120,-352.152162,0.00024657,2]
[377924068,1754613221131,-352.152162,0.00024657,2]
[377924069,1754613221141,-1707.57,0.00024657,2]
[377924070,1754613221151,-1287.29,0.00024657,2]
[377924071,1754613221162,-1515.17,0.00024657,2]
[377924072,1754613221173,-1621.03,0.00024657,2]
[377924073,1754613221183,-400.0,0.00024657,2]
[377924074,1754613221193,-1063.27,0.00024657,2]
[377924075,1754613221203,-420.834801,0.00024657,2]
[377924076,1754613221213,-420.834801,0.00024657,2]
[377924077,1754613221224,-1622.23,0.00024657,2]
[377924078,1754613221234,-400.0,0.00024657,2]
[377924079,1754613221244,-1480.91,0.00024657,2]
[377924080,1754613221254,-577.01,0.00024657,2]
[377924081,1754613221264,-346.5310256,0.00024657,2]
[377924082,1754613221275,-400.0,0.00024657,2]
[377924083,1754613221286,-877.01,0.00024657,2]
[377924084,1754613221296,-981.54,0.00024657,2]
[377924085,1754613221306,-1390.26,0.00024657,2]
[377924086,1754613221316,-1040.41,0.00024657,2]
[377924087,1754613221327,-447.12,0.00024657,2]
[377924088,1754613221337,-1312.79,0.00024657,2]
[377924089,1754613221347,-1460.09,0.00024657,2]
[377924090,1754613221358,-446.5,0.00024657,2]
[377924091,1754613221368,-246.791616,0.00024657,2]
[377924092,1754613221378,-246.791616,0.00024657,2]
[377924093,1754613221389,-783.24,0.00024657,2]
[377924094,1754613221399,-680.12,0.00024657,2]
[377924095,1754613221409,-400.0,0.00024657,2]
[377924096,1754613221419,-806.42,0.00024657,2]
[377924097,1754613221429,-998.91,0.00024657,2]
[377924098,1754613221439,-633.1,0.00024657,2]
[377924099,1754613221454,-803.71,0.00024657,2]
[377924100,1754613221464,-408.97,0.00024657,2]
[377924101,1754613221475,-436.39,0.00024657,2]
[377924102,1754613221485,-1211.14,0.00024657,2]
[377924103,1754613221496,-832.28,0.00024657,2]
[377924104,1754613221506,-634.61,0.00024657,2]
[377924105,1754613221517,-1042.43,0.00024657,2]
[377924106,1754613221527,-707.32,0.00024657,2]
[377924107,1754613221537,-455.66,0.00024657,2]
[377924108,1754613221548,-411.96,0.00024657,2]
[377924109,1754613221558,-854.23,0.00024657,2]
[377924110,1754613221568,-484.41,0.00024657,2]
[377924111,1754613221578,-9366.87,0.00024657,2]
[377924112,1754613221588,-801.68,0.00024657,2]
[377924113,1754613221599,-1513.02,0.00024657,2]
[377924114,1754613221610,-447.08,0.00024657,2]
[377924115,1754613221620,-400.0,0.00024657,2]
[377924116,1754613221630,-1785.26,0.00024657,2]
[377924117,1754613221642,-1103.08,0.00024657,2]
[377924118,1754613221652,-1209.1,0.00024657,2]
[377924119,1754613221663,-512.05,0.00024657,2]
[377924120,1754613221673,-837.98,0.00024657,2]
[377924121,1754613221684,-588.83,0.00024657,2]
[377924122,1754613221696,-1338.39,0.00024657,2]
[377924123,1754613221707,-1005.96,0.00024657,2]
[377924124,1754613221717,-1973.33,0.00024657,2]
[377924125,1754613221727,-467.43,0.00024657,2]
[377924126,1754613221738,-969.26,0.00024657,2]
[377924127,1754613221749,-1304.83,0.00024657,2]
[377924128,1754613221759,-602.9,0.00024657,2]
[377924129,1754613221770,-2027.86,0.00024657,2]
[377924130,1754613221781,-688.65,0.00024657,2]
[377924131,1754613221791,-703.47,0.00024657,2]
[377924132,1754613221802,-1312.78,0.00024657,2]
[377924133,1754613221813,-2100.2,0.00024657,2]
[377924134,1754613221824,-1134.28,0.00024657,2]
[377924135,1754613221835,-1383.67,0.00024657,2]
[377924136,1754613221846,-1569.86,0.00024657,2]
[377924137,1754613221856,-529.24,0.00024657,2]
[377924138,1754613221867,-812.54,0.00024657,2]
[377924139,1754613221879,-871.51,0.00024657,2]
[377924140,1754613221890,-801.5,0.00024657,2]
[377924141,1754613221904,-603.98,0.00024657,2]
[377924142,1754613221915,-755.43,0.00024657,2]
[377924143,1754613221927,-1094.56,0.00024657,2]
[377924144,1754613221938,-1864.15,0.00024657,2]
[377924145,1754613221954,-1856.19,0.00024657,2]
[377924146,1754613221965,-744.46,0.00024657,2]
[377924147,1754613221977,-574.05,0.00024657,2]
[377924148,1754613221988,-2819.61,0.00024657,2]
[377924149,1754613221999,-273.88,0.00024657,2]
[377924150,1754613222011,-963.74,0.00024657,2]
[377924151,1754613222022,-641.78,0.00024657,2]
[377924152,1754613222032,-421.69,0.00024657,2]
[377924153,1754613222043,-711.52,0.00024657,2]
[377924154,1754613222054,-329.49945715,0.00024657,2]
[377924155,1754613222064,-1482.22,0.00024657,2]
[377924156,1754613222074,-1692.64,0.00024657,2]
[377924157,1754613222085,-261.01990247,0.00024657,2]
[377924158,1754613222096,-1130.98,0.00024657,2]
[377924159,1754613222107,-561.73,0.00024657,2]
[377924160,1754613222118,-400.0,0.00024657,2]
[377924161,1754613222128,-9960.13,0.00024657,2]
[377924162,1754613222138,-500.34,0.00024657,2]
[377924163,1754613222148,-606.66,0.00024657,2]
[377924164,1754613222158,-546.64,0.00024657,2]
[377924165,1754613222169,-1592.3,0.00024657,2]
[377924166,1754613222179,-400.0,0.00024657,2]
[377924167,1754613222190,-1471.57,0.00024657,2]
[377924168,1754613222202,-2507.14,0.00024657,2]
[377924169,1754613222213,-1316.78,0.00024657,2]
[377924170,1754613222224,-1758.45,0.00024657,2]
[377924171,1754613222234,-1144.53,0.00024657,2]
[377924172,1754613222244,-1450.07,0.00024657,2]
[377924173,1754613222255,-567.89,0.00024657,2]
[377924174,1754613222265,-1555.78,0.00024657,2]
[377924175,1754613222275,-416.35,0.00024657,2]
[377924176,1754613222286,-973.9,0.00024657,2]
[377924177,1754613222296,-1577.14,0.00024657,2]
[377924178,1754613222306,-2230.25,0.00024657,2]
[377924179,1754613222315,-1658.19,0.00024657,2]
[377924180,1754613222325,-1949.39,0.00024657,2]
[377924181,1754613222335,-544.97,0.00024657,2]
[377924182,1754613222345,-505.76999867,0.00024657,2]
[377924183,1754613222356,-1736.77,0.00024657,2]
[377924184,1754613222366,-1506.04,0.00024657,2]
[377924185,1754613222376,-2189.36,0.00024657,2]
[377924186,1754613222705,-1668.74,0.00024657,2]
[377924187,1754613222715,-723.41,0.00024657,2]
[377924188,1754613222725,-1222.43,0.00024657,2]
[377924189,1754613222735,-527.26,0.00024657,2]
[377924190,1754613222745,-1196.36,0.00024657,2]
[377924191,1754613222755,-2004.13,0.00024657,2]
[377924192,1754613222766,-444.47,0.00024657,2]
[377924193,1754613222776,-554.57,0.00024657,2]
[377924194,1754613222786,-1393.06,0.00024657,2]
[377924195,1754613222796,-1109.06,0.00024657,2]
[377924196,1754613222807,-624.86,0.00024657,2]
[377924197,1754613222818,-1290.07,0.00024657,2]
[377924198,1754613222827,-2031.25,0.00024657,2]
[377924199,1754613222838,-1460.91,0.00024657,2]
[377924200,1754613222848,-469.16,0.00024657,2]
[377924201,1754613222858,-2043.58,0.00024657,2]
[377924202,1754613222868,-1164.41,0.00024657,2]
[377924203,1754613222881,-2666.29,0.00024657,2]
[377924204,1754613222892,-2592.74,0.00024657,2]
[377924205,1754613222902,-1333.93,0.00024657,2]
[377924206,1754613222912,-694.8,0.00024657,2]
[377924207,1754613222923,-750.53,0.00024657,2]
[377924208,1754613222933,-631.92,0.00024657,2]
[377924209,1754613222945,-1164.69,0.00024657,2]
[377924210,1754613222959,-2811.47,0.00024657,2]
[377924211,1754613222970,-518.35,0.00024657,2]
[377924212,1754613222980,-465.25,0.00024657,2]
[377924213,1754613222990,-543.99,0.00024657,2]
[377924214,1754613223000,-1133.55,0.00024657,2]
[377924215,1754613223010,-1818.01,0.00024657,2]
[377924216,1754613223020,-1288.12,0.00024657,2]
[377924217,1754613223030,-1275.65,0.00024657,2]
[377924218,1754613223040,-4407.12,0.00024657,2]
[377924219,1754613223049,-961.95,0.00024657,2]
[377924220,1754613223059,-680.98,0.00024657,2]
[377924221,1754613223069,-453.21,0.00024657,2]
[377924222,1754613223079,-160.79527146,0.00024657,2]
[377924223,1754613223089,-1714.38,0.00024657,2]
[377924224,1754613223098,-879.97,0.00024657,2]
[377924225,1754613223108,-1117.23,0.00024657,2]
[377924226,1754613223117,-1989.79,0.00024657,2]
[377924227,1754613223128,-1604.94,0.00024657,2]
[377924228,1754613223139,-633.58,0.00024657,2]
[377924229,1754613223148,-1105.6,0.00024657,2]
[377924230,1754613223158,-426.59,0.00024657,2]
[377924231,1754613223167,-1383.67,0.00024657,2]
[377924232,1754613223178,-446.1,0.00024657,2]
[377924233,1754613223188,-1061.62,0.00024657,2]
[377924234,1754613223200,-1419.58,0.00024657,2]
[377924235,1754613223210,-608.07,0.00024657,2]
[377924236,1754613223221,-2286.48,0.00024657,2]
[377924237,1754613223231,-1349.34,0.00024657,2]
[377924238,1754613223241,-1214.9,0.00024657,2]
[377924239,1754613223250,-994.63,0.00024657,2]
[377924240,1754613223261,-2503.56,0.00024657,2]
[377924241,1754613223271,-668.68,0.00024657,2]
[377924242,1754613223281,-2034.76,0.00024657,2]
[377924243,1754613223292,-578.7,0.00024657,2]
[377924244,1754613223302,-1646.26,0.00024657,2]
[377924245,1754613223312,-1889.62,0.00024657,2]
[377924246,1754613223322,-1276.94,0.00024657,2]
[377924247,1754613223332,-541.7279573,0.00024657,2]
[377924248,1754613223342,-1501.0,0.00024657,2]
[377924249,1754613223353,-1528.92,0.00024657,2]
[377924250,1754613223362,-1025.64,0.00024657,2]
[377924251,1754613223372,-2128.65,0.00024657,2]
[377924252,1754613223382,-547.41,0.00024657,2]
[377924253,1754613223393,-1086.24,0.00024657,2]
[377924254,1754613223403,-400.0,0.00024657,2]
[377924255,1754613223413,-1492.79,0.00024657,2]
[377924256,1754613223423,-1345.75,0.00024657,2]
[377924257,1754613223434,-607.0,0.00024657,2]
[377924258,1754613223445,-1120.37,0.00024657,2]
[377924259,1754613223456,-420.32,0.00024657,2]
[377924260,1754613223466,-489.48,0.00024657,2]
[377924261,1754613223476,-1434.86,0.00024657,2]
[377924262,1754613223487,-1951.53,0.00024657,2]
[377924263,1754613223497,-2325.69,0.00024657,2]
[377924264,1754613223507,-1065.9,0.00024657,2]
[377924265,1754613223516,-1376.02,0.00024657,2]
[377924266,1754613223526,-1151.09,0.00024657,2]
[377924267,1754613223535,-917.26,0.00024657,2]
[377924268,1754613223545,-400.0,0.00024657,2]
[377924269,1754613223554,-1350.78,0.00024657,2]
[377924270,1754613223564,-1848.96,0.00024657,2]
[377924271,1754613223574,-1409.09,0.00024657,2]
[377924272,1754613223583,-1657.63,0.00024657,2]
[377924273,1754613223593,-451.49,0.00024657,2]
[377924274,1754613223604,-2074.91,0.00024657,2]
[377924275,1754613223613,-2222.15,0.00024657,2]
[377924276,1754613223623,-608.66,0.00024657,2]
[377924277,1754613223632,-1826.78,0.00024657,2]
[377924278,1754613223643,-1588.59,0.00024657,2]
[377924279,1754613223653,-880.06,0.00024657,2]
[377924280,1754613223663,-1481.84,0.00024657,2]
[377924281,1754613223673,-1400.02,0.00024657,2]
[377924282,1754613223683,-1119.1,0.00024657,2]
[377924283,1754613223696,-1688.74,0.00024657,2]
[377924284,1754613223706,-2547.87,0.00024657,2]
[377924285,1754613223715,-1345.58,0.00024657,2]
[377924286,1754613223725,-1803.23,0.00024657,2]
[377924287,1754613223734,-3068.61,0.00024657,2]
[377924288,1754613223744,-1888.11,0.00024657,2]
[377924289,1754613223754,-846.92,0.00024657,2]
[377924290,1754613223763,-3553.23,0.00024657,2]
[377924291,1754613223773,-1278.15,0.00024657,2]
[377924292,1754613223783,-2027.95,0.00024657,2]
[377924293,1754613223793,-1218.73,0.00024657,2]
[377924294,1754613223803,-1857.98,0.00024657,2]
[377924295,1754613223812,-2016.9,0.00024657,2]
[377924296,1754613223822,-633.24,0.00024657,2]
[377924297,1754613223831,-1934.76,0.00024657,2]
[377924298,1754613223841,-2106.04,0.00024657,2]
[377924299,1754613223850,-1410.86,0.00024657,2]
[377924300,1754613223860,-881.02,0.00024657,2]
[377924301,1754613223870,-1461.11,0.00024657,2]
[377924302,1754613223881,-2341.65,0.00024657,2]
[377924303,1754613223895,-500.53231041,0.00024657,2]
[377924304,1754613223904,-1720.55,0.00024657,2]
[377924305,1754613223915,-542.48496064,0.00024657,2]
[377924306,1754613223925,-1452.03,0.00024657,2]
[377924307,1754613223935,-1620.97,0.00024657,2]
[377924308,1754613223946,-496.68,0.00024657,2]
[377924309,1754613223957,-634.15,0.00024657,2]
[377924310,1754613223967,-558.88,0.00024657,2]
[377924311,1754613223977,-2144.18,0.00024657,2]
[377924312,1754613223989,-2615.62,0.00024657,2]
[377924313,1754613223999,-1617.17,0.00024657,2]
[377924314,1754613224009,-2107.78,0.00024657,2]
[377924315,1754613224019,-1657.01,0.00024657,2]
[377924316,1754613224028,-749.36,0.00024657,2]
[377924317,1754613224038,-1646.42,0.00024657,2]
[377924318,1754613224048,-1193.46,0.00024657,2]
[377924319,1754613224057,-400.0,0.00024657,2]
[377924320,1754613224067,-2388.63,0.00024657,2]
[377924321,1754613224076,-1288.88,0.00024657,2]
[377924322,1754613224085,-2311.16,0.00024657,2]
[377924323,1754613224095,-1822.62,0.00024657,2]
[377924324,1754613224104,-612.27,0.00024657,2]
[377924325,1754613224113,-2350.74,0.00024657,2]
[377924326,1754613224123,-1810.11,0.00024657,2]
[377924327,1754613224132,-1537.46,0.00024657,2]
[377924328,1754613224141,-1369.16,0.00024657,2]
[377924329,1754613224151,-511.54,0.00024657,2]
[377924330,1754613224159,-482.95,0.00024657,2]
[377924331,1754613224169,-2136.59,0.00024657,2]
[377924332,1754613224178,-400.0,0.00024657,2]
[377924333,1754613224188,-1248.2,0.00024657,2]
[377924334,1754613224199,-1205.01,0.00024657,2]
[377924335,1754613224208,-483.64,0.00024657,2]
[377924336,1754613224218,-1594.51,0.00024657,2]
[377924337,1754613224228,-893.25,0.00024657,2]
[377924338,1754613224237,-1678.28,0.00024657,2]
[377924339,1754613224246,-845.84,0.00024657,2]
[377924340,1754613224255,-5670.63,0.00024657,2]
[377924341,1754613224265,-1256.8,0.00024657,2]
[377924342,1754613224275,-2578.27,0.00024657,2]
[377924343,1754613224285,-1440.32,0.00024657,2]
[377924344,1754613224295,-663.05,0.00024657,2]
[377924345,1754613224304,-738.95,0.00024657,2]
[377924346,1754613224314,-575.03,0.00024657,2]
[377924347,1754613224323,-2097.6,0.00024657,2]
[377924348,1754613224332,-2047.45,0.00024657,2]
[377924349,1754613224341,-500.07,0.00024657,2]
[377924350,1754613224351,-1244.17,0.00024657,2]
[377924351,1754613224360,-422.96,0.00024657,2]
[377924352,1754613224369,-759.15,0.00024657,2]
[377924353,1754613224378,-1757.73,0.00024657,2]
[377924354,1754613224388,-1316.97,0.00024657,2]
[377924355,1754613224397,-1321.01,0.00024657,2]
[377924356,1754613224408,-454.26,0.00024657,2]
[377924357,1754613224417,-3377.08,0.00024657,2]
[377924358,1754613224426,-1895.55,0.00024657,2]
[377924359,1754613224436,-1208.59,0.00024657,2]
[377924360,1754613224447,-1065.6,0.00024657,2]
[377924361,1754613224456,-2465.13,0.00024657,2]
[377924362,1754613224466,-671.01,0.00024657,2]
[377924363,1754613224476,-2359.49,0.00024657,2]
[377924364,1754613224486,-930.4,0.00024657,2]
[377924365,1754613224495,-916.62,0.00024657,2]
[377924366,1754613224505,-1206.78,0.00024657,2]
[377924367,1754613224514,-1926.69,0.00024657,2]
[377924368,1754613224523,-1712.73,0.00024657,2]
[377924369,1754613224533,-831.18,0.00024657,2]
[377924370,1754613224542,-1982.51,0.00024657,2]
[377924371,1754613224551,-458.34,0.00024657,2]
[377924372,1754613224561,-1225.08,0.00024657,2]
[377924373,1754613224571,-1138.89,0.00024657,2]
[377924374,1754613224580,-1259.99,0.00024657,2]
[377924375,1754613224590,-2026.14,0.00024657,2]
[377924376,1754613224600,-821.3,0.00024657,2]
[377924377,1754613224610,-785.6,0.00024657,2]
[377924378,1754613224619,-1205.32,0.00024657,2]
[377924379,1754613224628,-517.59,0.00024657,2]
[377924380,1754613224639,-720.69,0.00024657,2]
[377924381,1754613224648,-1835.44,0.00024657,2]
[377924382,1754613224658,-1444.0,0.00024657,2]
[377924383,1754613224667,-2627.0,0.00024657,2]
[377924384,1754613224677,-1785.88,0.00024657,2]
[377924385,1754613224686,-1057.29,0.00024657,2]
[377924386,1754613224698,-594.32,0.00024657,2]
[377924387,1754613224708,-737.52,0.00024657,2]
[377924388,1754613224717,-760.17,0.00024657,2]
[377924389,1754613224727,-1256.19,0.00024657,2]
[377924390,1754613224737,-1213.52,0.00024657,2]
[377924391,1754613224746,-782.04,0.00024657,2]
[377924392,1754613224756,-1326.52,0.00024657,2]
[377924393,1754613224765,-2043.3,0.00024657,2]
[377924394,1754613224775,-2287.32,0.00024657,2]
[377924395,1754613224785,-400.0,0.00024657,2]
[377924396,1754613224795,-1328.2,0.00024657,2]
[377924397,1754613224804,-1429.55,0.00024657,2]
[377924398,1754613224814,-1087.69,0.00024657,2]
[377924399,1754613224823,-718.93,0.00024657,2]
[377924400,1754613224833,-2952.54,0.00024657,2]
[377924401,1754613224843,-1291.71,0.00024657,2]
[377924402,1754613224852,-507.81,0.00024657,2]
[377924403,1754613224862,-1573.48,0.00024657,2]
[377924404,1754613224872,-300.0,0.00024657,2]
[377924405,1754613224882,-300.0,0.00024657,2]
[377924406,1754613224895,-300.0,0.00024657,2]
[377924407,1754613224904,-300.0,0.00024657,2]
[377924408,1754613224914,-300.0,0.00024657,2]
[377924409,1754613224923,-300.0,0.00024657,2]
[377924410,1754613224934,-2109.97,0.00024657,2]
[377924411,1754613224946,-300.0,0.00024657,2]
[377924412,1754613224955,-1129.91,0.00024657,2]
[377924413,1754613224965,-300.0,0.00024657,2]